[Event "Stay Safe Play From Home 174"]
[Site "T#646332Emanuel Laske"]
[Date "2020.05.25"]
[Round "8"]
[White "Patzeroglu"]
[Black "Haxhi Baha"]
[Result "1-0"]
[WhiteElo "1863"]
[BlackElo "1821"]
[Annotator "NA"]
[PlyCount "47"]
[EventDate "2020.05.25"]
[EventType "swiss (blitz)"]
[TimeControl "180"]

1. e4 {[%emt 0:00:06]} e6 {[%emt 0:00:01]} 2. d4 {[%emt 0:00:13]} d5 {[%emt 0:00:01]} 3. Nc3 {[%emt 0:00:01]} Nf6 {[%emt 0:00:01]} 4. Bg5 {[%emt 0:00:02]} Be7 {[%emt 0:00:01]} 5. e5 {[%emt 0:00:00]} Nfd7 {[%emt 0:00:01]} 6. Bxe7 {[%emt 0:00:03]} Qxe7 {[%emt 0:00:00]} 7. f4 {[%emt 0:00:02]} a6 {[%emt 0:00:01]} 8. Nf3 {[%emt 0:00:00]} c5 {[%emt 0:00:02]} 9. Bd3 {[%emt 0:00:00]} cxd4 {[%emt 0:00:02]} 10. Ne2 {[%emt 0:00:04]} Qb4+ {[%emt 0:00:02]} 11. Qd2 {[%emt 0:00:01]} Qxb2 {[%emt 0:00:01]} 12. O-O {[%emt 0:00:03]} Nc6 {[%emt 0:00:01]} 13. f5 {[%emt 0:00:20]} Ndxe5 {[%emt 0:00:04]} 14. Nxe5 {[%emt 0:00:09]} Nxe5 {[%emt 0:00:00]} 15. Qg5 {[%emt 0:00:01]} Nxd3 {[%emt 0:00:39]} 16. Qxg7 {[%emt 0:00:09]} Rf8 {[%emt 0:00:01]} 17. fxe6 {[%emt 0:00:50]} Bxe6 {[%emt 0:00:00]} 18. cxd3 {[%emt 0:00:03]} O-O-O {[%emt 0:00:48]} 19. Rac1+ {[%emt 0:00:11]} Kb8 {[%emt 0:00:01]} 20. Nxd4 {[%emt 0:00:00]} Rg8 {[%emt 0:00:06]} 21. Nc6+ {[%emt 0:00:03]} bxc6 {[%emt 0:00:04]} 22. Qxb2+ {[%emt 0:00:00]} Ka8 {[%emt 0:00:01]} 23. Rxc6 {[%emt 0:00:02]} Bc8 {[%emt 0:00:16]} 24. Rb1 {[%emt 0:00:03] Haxhi Baha resigns (Lag: Av=0.81s, max=1.7s)} 1-0